Cogmind - Beta 15 --- EXPLORER MODE // 2025.07.12 @ 08:33:30 Player: Yhurga Result: Self-destructed Performance ------------- Evolutions (1) 500 Regions Visited (2) 400 Robots Destroyed (22) 110 Value Destroyed (406) 406 Prototype IDs (3) 60 Alien Tech Used (0) 0 Bonus (0) 0 TOTAL SCORE: 1476 Bonus ------- None Cogmind --------- Core Integrity 391/400 Matter 267/300 Energy 100/125 System Corruption 0% Temperature Cool (1) Movement Flying (40) Location -9/Materials Parts ------- > --- POWER (2) -------- Light Ion Engine > --- PROPULSION (3) --- Flight Unit > --- UTILITY (3) ------ Weight Redist. System Seismic Detector Targeting Computer > --- WEAPON (2) ------- Light Assault Rifle Shotgun > --- INVENTORY (5) ---- Visual Processing Unit Sensor Array Improved Terrain Scanner Light Assault Rifle Mining Laser Peak State ------------ > --- POWER ------------ Ion Engine > --- PROPULSION ------- Light Treads Light Treads > --- UTILITY ---------- Improved Terrain Scanner Targeting Computer > --- WEAPON ----------- Light Assault Rifle Light Assault Rifle > --- INVENTORY -------- Light Ion Engine Medium Storage Unit Sensor Array Small Laser [Rating: 9] Favorites ----------- Power Light Ion Engine Engine Light Ion Engine Propulsion Compact Wheel Treads Light Treads Wheel Compact Wheel Flight Unit Flight Unit Utility Targeting Computer Device Seismic Detector Processor Targeting Computer Protection Light Armor Plating Weapon Light Assault Rifle Ballistic Gun Light Assault Rifle Build | -11 -10 -9 ------- Run | Yrd Mat Mat Slots Evolved 3 | . 1 2 Power 1 | . 1 . Propulsion 1 | . . 1 Utility 1 | . . 1 Weapon . | . . . Parts Attached 21 | 10 7 4 Power 3 | 2 1 . Engine 3 | 2 1 . Core . | . . . Reactor . | . . . Propulsion 6 | 2 4 . Treads 2 | 2 . . Leg . | . . . Wheel 2 | . 2 . Hover . | . . . Flight 2 | . 2 . Utility 5 | 4 . 1 Device 3 | 2 . 1 Storage . | . . . Processor 1 | 1 . . Hackware . | . . . Protection 1 | 1 . . Artifact . | . . . Weapon 7 | 2 2 3 Energy Gun . | . . . Energy Cannon . | . . . Ballistic Gun 7 | 2 2 3 Ballistic Cannon . | . . . Launcher . | . . . Special Weapon . | . . . Impact Weapon . | . . . Slashing Weapon . | . . . Piercing Weapon . | . . . Special Melee Weapon . | . . . Unidentified Prototypes . | . . . Parts Lost 1 | . . 1 Power . | . . . Propulsion 1 | . . 1 Utility . | . . . Weapon . | . . . Highest Loss Streak 1 | . . 1 To Critical Strikes . | . . . Average Backups 4 | 4 5 4 Power . | . . . Propulsion . | . . 1 Utility 2 | 2 3 2 Weapon 1 | . 1 1 Tool/Special . | . . . Unused Backups 5 | 1 1 3 Power . | . . . Propulsion . | . . . Utility 3 | . 1 2 Weapon 2 | 1 . 1 Tool/Special . | . . . Average Slot Usage (%) 91 | . 94 72 Engine 18 | . 19 10 Treads 3 | . 4 . Wheel 14 | . 16 . Flight 5 | . 3 18 Device 12 | . 12 14 Processor 11 | . 12 10 Ballistic Gun 24 | . 25 20 Peak Build Rating 9 | 9 8 9 Average Rating 7 | 6 7 7 On Entrance 4 | . 7 7 Naked Turns . | . . . Heaviest Build 10 | 10 9 8 Greatest Support 40 | 40 40 14 Greatest Overweight (x) . | . . . Average Overweight (x) . | . . . Largest Inventory Capacity 5 | 5 5 5 Average Capacity 5 | 5 5 5 Most Carried 5 | 5 5 5 Average Carried 4 | 4 4 4 Final Capacity 5 | 5 5 5 Final Carried 5 | 5 5 5 Class Distribution -------------------- 100% | Hacker-Mutant Dominant Class ---------------- Hacker-Mutant | -10/Materials Hacker-Mutant | -9/Materials Resources | -11 -10 -9 ----------- Run | Yrd Mat Mat Matter Collected 536 | 336 172 28 Remotely . | . . . Salvage Created 755 | 118 475 162 Parts 52 | 10 32 10 Haulers Intercepted 2 | . 1 1 Recyclers Shooed . | . . . Parts Field Recycled . | . . . Retrieved Matter . | . . . Parts Self-Destructed . | . . . Prevented . | . . . Kills | -11 -10 -9 ------- Run | Yrd Mat Mat Combat Hostiles Destroyed 11 | . 9 2 Guns 11 | . 9 2 Classes Destroyed 8 | 3 4 1 Worker 2 | 1 1 . Tunneler 2 | 2 . . Hauler 2 | . 1 1 Recycler 2 | 1 1 . Watcher 3 | . 3 . Swarmer 4 | . 4 . Grunt 5 | . 5 . Sentry 2 | . . 2 Best Kill Streak 4 | 2 4 2 Combat Bots Only 2 | . 2 2 Max Kills in Single Turn 2 | 1 2 1 Gunslinging 1 | . 1 . Exploded . | . . . Melee . | . . . Uniques/NPCs Destroyed . | . . . Combat | -11 -10 -9 -------- Run | Yrd Mat Mat Hostile Shots Fired 50 | . 36 14 Missed 14 | . 10 4 Hits 36 | . 26 10 Projectile 36 | . 26 10 Critical Strikes 1 | . . 1 Damage Taken 261 | . 171 90 Core 52 | . 43 9 Absorbed by Shields . | . . . Ignored by Resistances 166 | . 112 54 Core Remaining (%) 91 | 100 82 . Volleys Fired 72 | 18 41 13 Largest 2 | 2 2 2 Hottest 40 | 40 40 40 Shots Fired 144 | 36 82 26 Gun 144 | 36 82 26 Cannon . | . . . Launcher . | . . . Special . | . . . Kinetic 144 | 36 82 26 Thermal . | . . . Explosive . | . . . Electromagnetic . | . . . Robot Hit Streak 22 | 18 22 12 Robot Miss Streak 2 | 1 2 1 Penetration Max . | . . . Secondary Targets 2 | . 2 . Max Gunslinging Chain 1 | . 1 . Shots Hit Robots 123 | 31 68 24 Core Hits 47 | 8 30 9 Critical Kills 1 | . 1 . Critical Parts Destroyed 1 | 1 . . Critical Strikes 2 | 1 1 . Destroy 2 | 1 1 . Melee Attacks . | . . . Impact . | . . . Slashing . | . . . Piercing . | . . . Sneak Attacks . | . . . Combat Hostiles . | . . . Follow-up Attacks . | . . . Damage Inflicted 935 | 240 522 173 Guns 935 | 240 522 173 Cannons . | . . . Explosions . | . . . Melee . | . . . Ramming . | . . . Kinetic 935 | 240 522 173 Thermal . | . . . Explosive . | . . . Electromagnetic . | . . . Impact . | . . . Slashing . | . . . Piercing . | . . . Highest Corruption . | . . . Average Corruption . | . . . Corruption Purged . | . . . Corruption Blocked . | . . . Overload Shots . | . . . Overflow Damage . | . . . Projectiles . | . . . Explosions . | . . . Melee . | . . . Knockbacks . | . . . Impact . | . . . Kinetic . | . . . Secondary . | . . . Self-Inflicted Damage . | . . . Shots . | . . . Rammed . | . . . Targets Rammed . | . . . Kicked . | . . . Crushed . | . . . Highest Temperature 34 | 12 34 25 Average Temperature 9 | 6 10 7 Received Heat Transfer 177 | . 114 63 Siege Activations . | . . . Martial Activations . | . . . Shielding Activations . | . . . Robots Disrupted . | . . . Combat Hostiles . | . . . Robots Corrupted . | . . . Combat Hostiles . | . . . Parts Fried . | . . . Impact Corruptions . | . . . Robots Melted . | . . . Combat Hostiles . | . . . Parts Melted . | . . . Heat Transferred . | . . . Parts Sabotaged . | . . . Parts Stolen . | . . . Parts Stripped . | . . . Power Chain Reactions . | . . . Alert | -11 -10 -9 ------- Run | Yrd Mat Mat Maximum Alert Level . | . . . Low Security (%) 100 | 100 100 100 Level 1 . | . . . Level 2 . | . . . Level 3 . | . . . Level 4 . | . . . Level 5 . | . . . High Security . | . . . Max Security . | . . . Peak Influence 65 | 5 65 45 Initial 7 | . . 7 Average 10 | . 14 5 Influence Increases 358 | 20 271 67 Destroy 0b10 Robot/C 220 | . 180 40 Destroy 0b10 Robot/NC 55 | 20 30 5 Destroy Leader 70 | . 48 22 Successful Hack 13 | . 13 . Influence Decreases 313 | 20 244 49 Entered New Map 20 | . . 20 Time Decay 290 | 20 241 29 Purge Threat 3 | . 3 . Squads Dispatched 1 | . . 1 Investigation . | . . . Extermination . | . . . Reinforcement 1 | . . 1 Assault . | . . . Garrison . | . . . Intercept . | . . . Searches Triggered . | . . . Construction Impeded . | . . . Haulers Reinforced . | . . . Active Scanning Responses . | . . . Cargo Convoy Interrupts . | . . . Stealth | -11 -10 -9 --------- Run | Yrd Mat Mat Distress Signals 2 | . 1 1 Communications Jammed . | . . . Distress Signals . | . . . Times Spotted 17 | . 14 3 Peak Tracking Total 3 | . 3 3 Tactical Retreats . | . . . Traps | -11 -10 -9 ------- Run | Yrd Mat Mat Traps Triggered . | . . . Indirectly . | . . . Trap Hack Attempts . | . . . Triggered . | . . . Disarmed . | . . . Reprogrammed . | . . . Reused . | . . . Traps Extracted . | . . . Installed . | . . . Triggered . | . . . Machines | -11 -10 -9 ---------- Run | Yrd Mat Mat Machines Disabled . | . . . Max in Single Turn . | . . . Machines Repaired . | . . . Machines Dismantled . | . . . Machines Sabotaged . | . . . Overloaded Fab Kills . | . . . Hacking | -11 -10 -9 --------- Run | Yrd Mat Mat Machines Accessed 6 | . 6 . Terminals 6 | . 6 . Fabricators . | . . . Repair Stations . | . . . Recycling Units . | . . . Scanalyzers . | . . . Garrison Access . | . . . Total Hacks 17 | . 17 . Successful 10 | . 10 . Failed 7 | . 7 . Catastrophic 1 | . 1 . Database Lockouts . | . . . Manual 10 | . 10 . Terminals 17 | . 17 . Fabricators . | . . . Repair Stations . | . . . Recycling Units . | . . . Scanalyzers . | . . . Garrison Access . | . . . Terminal Hacks 10 | . 10 . Part Schematic 2 | . 2 . Prototype ID Bank 2 | . 2 . Emergency Access Points 1 | . 1 . Alert Level 2 | . 2 . Unreport Threat 1 | . 1 . Hauler Manifests 1 | . 1 . Zone Layout 1 | . 1 . Fabricator Hacks . | . . . Repair Station Hacks . | . . . Recycling Unit Hacks . | . . . Scanalyzer . | . . . Garrison Access Hacks . | . . . Unauthorized Hacks . | . . . Terminals . | . . . Fabricators . | . . . Repair Stations . | . . . Recycling Units . | . . . Scanalyzers . | . . . Garrison Access . | . . . Data Cores Recovered . | . . . Used . | . . . Hacking Detections 4 | . 4 . Full Trace Events . | . . . Feedback Events . | . . . Feedback Blocked . | . . . Robot Schematics Acquired . | . . . Robots Built . | . . . Authchips . | . . . Time . | . . . Total Robot Build Rating . | . . . Part Schematics Acquired 2 | . 2 . Parts Built . | . . . Authchips . | . . . Time . | . . . Total Part Build Rating . | . . . Parts Repaired . | . . . Time . | . . . Parts Recycled . | . . . Recycled Matter . | . . . Retrieved Matter . | . . . Retrieved Components . | . . . Parts Scanalyzed . | . . . Part Schematics Acquired . | . . . Parts Damaged . | . . . Bothacking | -11 -10 -9 ------------ Run | Yrd Mat Mat Used RIF Installer . | . . . Robots Hacked . | . . . Non-combat . | . . . Combat . | . . . Robot Hacks Applied . | . . . Relay Couplers Released . | . . . Fabnet Peak Effective % . | . . . Robots Rewired . | . . . Allies Hacked . | . . . Hacks Repelled . | . . . Allies | -11 -10 -9 -------- Run | Yrd Mat Mat Total Allies . | . . . Largest Group . | . . . Highest-Rated Group . | . . . Highest-Rated Ally . | . . . Total Orders . | . . . Ally Attacks . | . . . Total Damage . | . . . Kills . | . . . Allies Corrupted . | . . . Allies Melted . | . . . Intel | -11 -10 -9 ------- Run | Yrd Mat Mat Active Infowar (turns) 803 | 92 625 86 Terrain 10 | 10 . . Seismic 793 | 82 625 86 Robot Analysis Total . | . . . Derelict Logs Recovered . | . . . Drone Launches . | . . . Drone Recoveries . | . . . Exploration | -11 -10 -9 ------------- Run | Yrd Mat Mat Turns Passed 980 | 269 625 86 Spaces Moved 721 | 129 508 84 Core 6 | 6 . . Treads 179 | 123 56 . Legs . | . . . Wheels 317 | . 317 . Hover . | . . . Flight 219 | . 135 84 Fastest Speed 37 | 50 37 37 Average Speed 95 | 154 89 37 Slowest Speed 160 | 160 160 40 Overloaded Moves . | . . . Propulsion Burnouts . | . . . Robots Hopped . | . . . Potential Cave-ins . | . . . Cave-ins Triggered . | . . . Exploration Rate (%) 32 | 8 81 9 Regions Visited 2 Branch Regions . Pre-discovered Areas . | . . . Known Exits Taken 2 | 1 1 . Unknown Exits Taken . | . . . Scrap Searched . | . . . Spaces Dug . | . . . Terrain Destroyed . | . . . Melee . | . . . Projectile . | . . . AOE . | . . . Terrain Rammed . | . . . Walls Destroyed . | . . . Machines Disabled . | . . . Actions | -11 -10 -9 --------- Run | Yrd Mat Mat Total 896 | 166 611 119 Wait 55 | . 43 12 Move 719 | 128 507 84 Hop . | . . . Pick Up 14 | 8 4 2 Fast Attach 8 | 6 1 1 Attach 2 | 1 1 . Detach . | . . . Swap 13 | 3 7 3 Drop 13 | 2 7 4 Fire 72 | 18 41 13 Melee . | . . . Ram . | . . . Kick . | . . . Crush . | . . . Escape Stasis . | . . . Rewire . | . . . Trap . | . . . Miscellaneous . | . . . Route ------- -11/Scrapyard -10/Materials (discovered 3 exits: *Mat x3) -9/Materials History --------- Turn | Location | Event 14 | -11/Scrapyard | Identified exit to Materials 14 | -11/Scrapyard | Discovered exit to Materials (range 16) 270 | -11/Scrapyard | Entered Materials 270 | -10/Materials | Evolved 1 slot: Power x1 309 | -10/Materials | Build established: Hacker-Mutant 442 | -10/Materials | Identified exit to Materials 442 | -10/Materials | Discovered exit to Materials (range 16) 719 | -10/Materials | Discovered exit to Materials (range 16) 818 | -10/Materials | Discovered exit to Materials (range 5) 895 | -10/Materials | Entered another Materials area 895 | -9/Materials | Evolved 2 slots: Propulsion x1, Utility x1 981 | -9/Materials | Self-destructed Last Messages --------------- PARAMETERS=PROPULSION+1,UTILITY+1 LOCATION=MATERIALS GOAL=ESCAPE K-01 Serf collects debris. K-01 Serf cleans the Atomic Centrifuge. A-02 Transporter destroyed. ALERT: Hostiles spotted, dispatching reinforcements to Terminal M005. Dropped Lgt. Assault Rifle. Acquired 28 matter. Acquired Weight Redist. System. Dropped Com. Wheel. Acquired Shotgun. Acquired Visual Processing Unit. K-01 Serf collects debris. Flight Unit destroyed. Y-45 Defender destroyed. Critical hit (Burn: +37). Y-45 Defender destroyed. K-01 Serf collects debris. Map ----- +----------------------------------------------------+ | | | | | | | | | | | | | | | | | | | | | | | ???????????????????????????????????????? | | ??????????????????????????????????????## | | ??????????###########?????????????????# | | ??????????# [!! #??????????######## | | ??????????# = ! !#??#########[[[ + | | ??????????# = #??# ##%###### | | ??????????# #### """ ##[#????## | | ??????????# """ """ + # """ #[[#?????? | | ??????????# """ """ # + """ +*=#?????? | | ??????????# """ """ # # # !####??? | | ??????????# # # # !##?? | | ??????????#####;##### ##+##### !#?? | | ????????????# [ !#?? | | ????????????# !!! !#?? | | ????????????###@##### ##+######## !#?? | | ????????????? %%= ??# #?????????? !##?? | | ??????????? [][""" # #??????????###??? | | ??????????# [ """ # #???????????????? | | ??????????# """ # #???????????????? | | ??????????# "" # #???????????????? | | ??????????# "T * # ????????????????? | | ??????????# "" o ? ????????????????? | | ??????????# ?? ????????????????? | | ??????????#?##### ?????????????????????? | | ?????????????????#?????????????????????? | | ???????????????????????????????????????? | | ???????????????????????????????????????? | | ???????????????????????????????????????? | | ???????????????????????????????????????? | | ???????????????????????????????????????? | | ???????????????????????????????????????? | | ???????????????????????????????????????? | | ???????????????????????????????????????? | | ???????????????????????????????????????? | | ???????????????????????????????????????? | | ???????????????????????????????????????? | | ???????????????????????????????????????? | | ???????????????????????????????????????? | | ???????????????????????????????????????? | +----------------------------------------------------+ Best States ------------- Heat Dissipation 28 Energy Generation 15 Energy Capacity 250 Matter Stores 300 Matter Capacity 300 Sight Range 16 Terrain Scan Range 16 Terrain Scan Density 10 Additional Mass Support 6 Armor Coverage 150 Resistance: KI 35 Resistance: TH 35 Resistance: EX 35 Resistance: EM 35 Resistance: I 35 Resistance: S 35 Resistance: P 35 Evasion (%) 62 Targeting Accuracy 5 Recoil Reduction 2 Offensive Hacking 20 Item Schematics ----------------- Flight Unit | -10/Materials | Hacked Lgt. Armor Plating | -10/Materials | Hacked Robot Schematics ------------------ None Fabricated ------------ Nothing Repaired ---------- Nothing Alien Tech Used ----------------- None Achievements -------------- None Challenges ------------ None Game ------ Seed SubdwellerShadingDissipator Manual? 0 Play Time 00:19:18 Cumulative 6.9 hours Start 2025.07.12 @ 08:12:16 End 2025.07.12 @ 08:33:30 Sessions 2 Manual Loads 0 Difficulty Explorer Special Mode None Game No. 4 Rogue 0 Adventurer 0 Explorer 4 Win Type - Total 0 Types 0/0/0/0/0/0/0/0/0/0 Lore% 1 Gallery% 12 Achievement% 16 Wizard Run 0 Options --------- Layout 2 ASCII 0 Keyboard 0 Movement Mouse Keybinds 0 Fullscreen 1 Font 24/Smallcaps Map View 50x44 Zoom Use 0% Tactical HUD 0 Map Filters NONE Filters NONE Steam 1 RUN: 8f3b4149-24b1-4fb9-b7b4-2a53faba90bb